fUST/lending_fUST_20241201
["ID","MTS","AMOUNT","RATE_DAILY","PERIOD"]
[343918689,1733065839332,-500.0,0.00027397,3]
[343918690,1733065839342,-500.0,0.00027397,3]
[343918691,1733065839351,-500.0,0.00027397,3]
[343918692,1733065839362,-500.0,0.00027397,3]
[343918693,1733065839371,-500.0,0.00027397,3]
[343918694,1733065839380,-500.0,0.00027397,3]
[343918695,1733065839390,-500.0,0.00027397,3]
[343918696,1733065839399,-517.71,0.00027397,3]
[343918697,1733065839409,-565.72,0.00027397,3]
[343918698,1733065839419,-511.14548355,0.00027397,3]
[343918699,1733065839432,-500.0,0.00027397,3]
[343918700,1733065839443,-500.0,0.00027397,3]
[343918701,1733065839453,-500.0,0.00027397,3]
[343918702,1733065839465,-500.0,0.00027397,3]
[343918703,1733065839477,-500.0,0.00027397,3]
[343918704,1733065839487,-391.44362008,0.00027397,3]
[343918705,1733065839497,-500.0,0.00027397,3]
[343918706,1733065839506,-500.0,0.00027397,3]
[343918707,1733065839517,-500.0,0.00027397,3]
[343918708,1733065839527,-500.0,0.00027397,3]
[343918709,1733065839537,-578.35,0.00027397,3]
[343918710,1733065839548,-500.0,0.00027397,3]
[343918711,1733065839557,-500.0,0.00027397,3]
[343918712,1733065839567,-500.0,0.00027397,3]
[343918713,1733065839576,-500.0,0.00027397,3]
[343918714,1733065839586,-500.0,0.00027397,3]
[343918715,1733065839595,-500.0,0.00027397,3]
[343918716,1733065839605,-500.0,0.00027397,3]
[343918717,1733065839615,-500.0,0.00027397,3]
[343918718,1733065839624,-500.0,0.00027397,3]
[343918719,1733065839636,-500.0,0.00027397,3]
[343918720,1733065839645,-500.0,0.00027397,3]
[343918721,1733065839655,-500.0,0.00027397,3]
[343918722,1733065839664,-500.0,0.00027397,3]
[343918723,1733065839677,-500.0,0.00027397,3]
[343918724,1733065839687,-500.0,0.00027397,3]
[343918725,1733065839702,-500.0,0.00027397,3]
[343918726,1733065839712,-500.0,0.00027397,3]
[343918727,1733065839722,-500.0,0.00027397,3]
[343918728,1733065839731,-500.0,0.00027397,3]
[343918729,1733065839741,-200.0,0.00027397,3]
[343918730,1733065839751,-500.0,0.00027397,3]
[343918731,1733065839761,-241.05924781,0.00027397,3]
[343918767,1733065843732,-258.94075219,0.00027397,3]
[343918768,1733065843742,-377.30885929,0.00027397,3]
[343918769,1733065843752,-500.0,0.00027397,3]
[343918770,1733065843762,-608.7,0.00027397,3]
[343918771,1733065843771,-500.0,0.00027397,3]
[343918772,1733065843780,-500.0,0.00027397,3]
[343918773,1733065843790,-522.47048658,0.00027397,3]
[343918774,1733065843799,-500.0,0.00027397,3]
[343918775,1733065843809,-546.1738869,0.00027397,3]
[343918776,1733065843819,-500.0,0.00027397,3]
[343918777,1733065843828,-500.0,0.00027397,3]
[343918778,1733065843838,-500.0,0.00027397,3]
[343918779,1733065843847,-151.0,0.00027397,7]
[343918780,1733065843857,-500.0,0.00027397,3]
[343918781,1733065843866,-500.0,0.00027397,3]
[343918782,1733065843875,-500.0,0.00027397,3]
[343918783,1733065843885,-500.0,0.00027397,3]
[343918784,1733065843894,-354.213126,0.00027397,3]
[343918785,1733065843903,-505.55848924,0.00027397,3]
[343918786,1733065843913,-500.0,0.00027397,3]
[343918787,1733065843922,-500.0,0.00027397,3]
[343918788,1733065843935,-500.0,0.00027397,3]
[343918789,1733065843944,-500.0,0.00027397,3]
[343918790,1733065843954,-500.0,0.00027397,3]
[343918791,1733065843964,-500.0,0.00027397,3]
[343918792,1733065843973,-500.0,0.00027397,3]
[343918793,1733065843983,-500.0,0.00027397,3]
[343918794,1733065843992,-500.0,0.00027397,3]
[343918795,1733065844001,-500.0,0.00027397,3]
[343918796,1733065844011,-500.0,0.00027397,3]
[343918797,1733065844020,-500.0,0.00027397,3]
[343918798,1733065844029,-500.0,0.00027397,3]
[343918799,1733065844041,-500.0,0.00027397,3]
[343918800,1733065844050,-164.726764,0.00027397,7]
[343918801,1733065844060,-512.82419668,0.00027397,3]
[343918802,1733065844069,-500.0,0.00027397,3]
[343918803,1733065844079,-640.40466267,0.00027397,3]
[343918804,1733065844089,-500.0,0.00027397,3]
[343918805,1733065844098,-500.0,0.00027397,3]
[343918806,1733065844108,-500.0,0.00027397,3]
[343918807,1733065844118,-500.0,0.00027397,3]
[343918808,1733065844128,-353.98255533,0.00027397,3]
[343918809,1733065844138,-500.0,0.00027397,3]
[343918810,1733065844147,-500.0,0.00027397,3]
[343918811,1733065844157,-500.0,0.00027397,3]
[343918812,1733065844166,-500.0,0.00027397,3]
[343918813,1733065844176,-500.0,0.00027397,3]
[343918814,1733065844186,-151.0,0.00027397,7]
[343918815,1733065844195,-190.05701939,0.00027397,3]
[343918816,1733065844204,-531.95378692,0.00027397,3]
[343918817,1733065844214,-500.0,0.00027397,3]
[343918818,1733065844223,-500.0,0.00027397,3]
[343918819,1733065844232,-151.0,0.00027397,7]
[343918820,1733065844242,-500.0,0.00027397,3]
[343918821,1733065844251,-500.0,0.00027397,3]
[343918822,1733065844260,-500.0,0.00027397,3]
[343918823,1733065844270,-500.0,0.00027397,3]
[343918824,1733065844279,-500.0,0.00027397,3]
[343918825,1733065844288,-500.0,0.00027397,3]
[343918826,1733065844297,-2154.64887674,0.00027397,3]
[343918827,1733065844337,-4490.52903427,0.00027397,3]
[343918842,1733065846637,-11510.39208899,0.00027397,3]
[343918843,1733065846647,-500.0,0.00027397,3]
[343918844,1733065846656,-427.49693625,0.00027397,3]
[343918845,1733065846665,-500.0,0.00027397,3]
[343918846,1733065846676,-562.30269178,0.00027397,3]
[343918847,1733065846686,-500.0,0.00027397,3]
[343918848,1733065846695,-500.0,0.00027397,3]
[343918849,1733065846704,-500.0,0.00027397,3]
[343918850,1733065846713,-500.0,0.00027397,3]
[343918852,1733065846723,-503.51497263,0.00027397,3]
[343918853,1733065846732,-500.0,0.00027397,3]
[343918854,1733065846742,-500.0,0.00027397,3]
[343918855,1733065846751,-691.88,0.00027397,3]
[343918856,1733065846760,-153.492793,0.00027397,7]
[343918857,1733065846770,-500.0,0.00027397,3]
[343918858,1733065846779,-500.0,0.00027397,3]
[343918859,1733065846788,-500.0,0.00027397,3]
[343918860,1733065846797,-556.14730497,0.00027397,3]
[343918861,1733065846806,-94.77321238,0.00027397,3]
[343918863,1733065862581,171.781524,0.00013973,2]
[343918864,1733066135860,-508.377,0.00027397,120]
[343918865,1733066135912,-278.70010815,0.00029041,120]
[343918866,1733066135939,-169.44,0.00029255,120]
[343918867,1733066135962,-150.5,0.00029265,120]
[343918868,1733066135984,-150.5,0.00029285,120]
[343918869,1733066136007,-219.13,0.00029295,120]
[343918870,1733066136030,-150.5,0.00029295,120]
[343918871,1733066136053,-150.5,0.00029305,120]
[343918872,1733066136076,-150.5,0.00029305,120]
[343918873,1733066136101,-450.0,0.000294,120]
[343918874,1733066136124,-260.84,0.0002949,120]
[343918875,1733066136146,-642.4657837,0.000295,120]
[343918878,1733066598771,158.216301,0.00013973,2]
[343918882,1733066759184,-1169.27083333,0.0002,2]
[343918883,1733066759207,-161.0,0.00022,2]
[343918884,1733066759234,-158.216301,0.00022759,2]
[343918885,1733066759258,-145.88298851,0.00025,2]
[343918892,1733066845085,-525.01575831,0.0002,2]
[343918894,1733066925734,4791.16153982,0.000109,2]
[343918896,1733066955151,-1169.27083333,0.0002,2]
[343918897,1733066955174,-150.00007477,0.0002,7]
[343918898,1733066955197,-300.0,0.00020376,2]
[343918899,1733066955220,-300.0,0.00020376,2]
[343918900,1733066955241,-3006.0,0.00020376,2]
[343918901,1733066955263,-14341.44102584,0.00020377,2]
[343918902,1733066968092,-3943.43628068,0.00020377,2]
[343918903,1733066968114,-420.0,0.00022179,2]
[343918904,1733066968135,-420.0,0.00022414,2]
[343918905,1733066968158,-466.62753241,0.00024141,2]
[343918942,1733067036483,-1169.27083333,0.00020323,2]
[343918943,1733067036494,-1432.2110174,0.00024058,2]
[343918944,1733067036503,-1460.14171495,0.0002498,2]
[343918945,1733067036513,-300.0,0.00024999,2]
[343918946,1733067036523,-194.0,0.00024999,2]
[343918947,1733067036533,-542.47565325,0.00025,2]
[343918948,1733067036543,-8524.10383911,0.00025,2]
[343918949,1733067036552,-61973.39762093,0.00025,2]
[343918950,1733067036561,-299.57888653,0.00025,2]
[343918951,1733067036571,-345.87223378,0.00025069,2]
[343918952,1733067036581,-500.0,0.00025069,2]
[343918953,1733067036591,-500.0,0.00025069,2]
[343918954,1733067036601,-500.0,0.00025069,2]
[343918955,1733067036611,-500.0,0.00025069,2]
[343918956,1733067036621,-500.0,0.00025069,2]
[343918957,1733067036631,-180.80639066,0.00025069,2]
[343918958,1733067036641,-500.0,0.00025069,2]
[343918960,1733067036651,-500.0,0.00025069,2]
[343918962,1733067036661,-500.0,0.00025069,2]
[343918964,1733067036671,-500.0,0.00025069,2]
[343918965,1733067036681,-500.0,0.00025069,2]
[343918966,1733067036694,-500.0,0.00025069,2]
[343918967,1733067036704,-500.0,0.00025069,2]
[343918968,1733067036714,-457.4978348,0.00025069,2]
[343918969,1733067036724,-500.0,0.00025069,2]
[343918970,1733067036734,-500.0,0.00025069,2]
[343918971,1733067036745,-500.0,0.00025069,2]
[343918972,1733067036756,-500.0,0.00025069,2]
[343918973,1733067036766,-500.0,0.00025069,2]
[343918974,1733067036776,-500.0,0.00025069,2]
[343918975,1733067036786,-500.0,0.00025069,2]
[343918976,1733067036796,-500.0,0.00025069,2]
[343918977,1733067036806,-500.0,0.00025069,2]
[343918978,1733067036816,-500.0,0.00025069,2]
[343918979,1733067036826,-500.0,0.00025069,2]
[343918980,1733067036836,-500.0,0.00025069,2]
[343918981,1733067036845,-386.7186397,0.00025069,2]
[343918982,1733067036855,-286.91121462,0.00025069,2]
[343918983,1733067036867,-500.0,0.00025069,2]
[343918984,1733067036878,-500.0,0.00025069,2]
[343918985,1733067036888,-500.0,0.00025069,2]
[343918986,1733067036898,-500.0,0.00025069,2]
[343918987,1733067036909,-500.0,0.00025069,2]
[343918988,1733067036919,-500.0,0.00025069,2]
[343918989,1733067036929,-235.78624663,0.00025069,2]
[343918990,1733067036942,-500.0,0.00025069,2]
[343918991,1733067036953,-500.0,0.00025069,2]
[343918992,1733067036963,-500.0,0.00025069,2]
[343918993,1733067036973,-500.0,0.00025069,2]
[343918994,1733067036983,-500.0,0.00025069,2]
[343918995,1733067036993,-500.0,0.00025069,2]
[343918996,1733067037002,-500.0,0.00025069,2]
[343918997,1733067037012,-500.0,0.00025069,2]
[343918998,1733067037022,-500.0,0.00025069,2]
[343918999,1733067037033,-500.0,0.00025069,2]
[343919000,1733067037043,-500.0,0.00025069,2]
[343919001,1733067037053,-500.0,0.00025069,2]
[343919002,1733067037064,-500.0,0.00025069,2]
[343919003,1733067037074,-193.14152131,0.00025069,2]
[343919004,1733067037084,-500.0,0.00025069,2]
[343919005,1733067037094,-500.0,0.00025069,2]
[343919006,1733067037104,-500.0,0.00025069,2]
[343919007,1733067037114,-500.0,0.00025069,2]
[343919008,1733067037124,-500.0,0.00025069,2]
[343919009,1733067037231,-500.0,0.00025069,2]
[343919010,1733067037244,-500.0,0.00025069,2]
[343919011,1733067037254,-500.0,0.00025069,2]
[343919012,1733067037264,-500.0,0.00025069,2]
[343919013,1733067037274,-500.0,0.00025069,2]
[343919014,1733067037284,-500.0,0.00025069,2]
[343919015,1733067037294,-500.0,0.00025069,2]
[343919016,1733067037304,-500.0,0.00025069,2]
[343919017,1733067037314,-500.0,0.00025069,2]
[343919018,1733067037323,-500.0,0.00025069,2]
[343919019,1733067037333,-500.0,0.00025069,2]
[343919020,1733067037343,-500.0,0.00025069,2]
[343919021,1733067037353,-1077.27099124,0.0002507,2]
[343919022,1733067037364,-681.84,0.0002508,3]
[343919023,1733067037373,-340.92,0.0002508,3]
[343919024,1733067037383,-170.46,0.0002508,3]
[343919025,1733067037393,-511.42,0.0002508,3]
[343919026,1733067037403,-445.78612692,0.00025089,2]
[343919027,1733067037413,-76838.37780798,0.0002509,2]
[343919028,1733067037423,-7735.0442644,0.00025171,11]
[343919029,1733067037432,-187.4674045,0.00025715,2]
[343919030,1733067037444,-1460.14171491,0.00025745,2]
[343919031,1733067037454,-1077.27099123,0.00025764,2]
[343919032,1733067037463,-200.0,0.00025912,2]
[343919033,1733067037473,-12119.19997221,0.00026,2]
[343919034,1733067037483,-26539.679573,0.00026,30]
[343919035,1733067037492,-8250.05227901,0.00026363,2]
[343919036,1733067037502,-1363.68,0.0002645,3]
[343919037,1733067037512,-681.84,0.0002645,3]
[343919038,1733067037522,-340.92,0.0002645,3]
[343919039,1733067037531,-1077.27099123,0.00026458,2]
[343919040,1733067037541,-1460.14171491,0.0002651,2]
[343919041,1733067037552,-8250.05227901,0.00026731,2]
[343919042,1733067037562,-150.0,0.00026834,2]
[343919043,1733067037572,-176.88001289,0.00027041,2]
[343919044,1733067037582,-8250.05227901,0.00027063,2]
[343919045,1733067037592,-1077.27099123,0.00027151,2]
[343919046,1733067037602,-1460.14171491,0.00027275,2]
[343919047,1733067037612,-16835.42239803,0.00027297,2]
[343919048,1733067037622,-180.05398093,0.00027373,2]
[343919049,1733067037632,-197.00079036,0.00027373,2]
[343919050,1733067037642,-502.02133247,0.00027373,2]
[343919051,1733067037652,-404.15600433,0.00027373,2]
[343919052,1733067037662,-500.0,0.00027373,2]
[343919053,1733067037671,-500.0,0.00027373,2]
[343919054,1733067037681,-8250.05227903,0.00027395,2]
[343919055,1733067037691,-151.0,0.00027397,7]
[343919056,1733067037700,-646.4565013,0.00027397,3]
[343919057,1733067037709,-500.0,0.00027397,3]
[343919058,1733067037719,-350.97155281,0.00027397,2]
[343919059,1733067037730,-400.06688696,0.00027397,3]
[343919060,1733067037739,-500.0,0.00027397,3]
[343919061,1733067037749,-500.0,0.00027397,2]
[343919062,1733067037759,-500.0,0.00027397,3]
[343919063,1733067037769,-500.0,0.00027397,3]
[343919064,1733067037779,-500.0,0.00027397,3]
[343919065,1733067037789,-500.0,0.00027397,3]
[343919066,1733067037799,-500.0,0.00027397,3]
[343919067,1733067037810,-500.0,0.00027397,3]
[343919068,1733067037820,-500.0,0.00027397,3]
[343919069,1733067037829,-500.0,0.00027397,3]
[343919070,1733067037839,-500.0,0.00027397,3]
[343919071,1733067037848,-500.0,0.00027397,3]
[343919072,1733067037858,-500.0,0.00027397,3]
[343919073,1733067037867,-500.0,0.00027397,3]
[343919074,1733067037882,-500.0,0.00027397,3]
[343919075,1733067037892,-500.0,0.00027397,3]
[343919076,1733067037903,-500.0,0.00027397,3]
[343919077,1733067037913,-500.0,0.00027397,3]
[343919078,1733067037922,-500.0,0.00027397,3]
[343919079,1733067037932,-535.36818911,0.00027397,3]
[343919080,1733067037944,-500.0,0.00027397,3]
[343919081,1733067037954,-506.24473895,0.00027397,3]
[343919082,1733067037963,-542.82267848,0.00027397,3]
[343919083,1733067037973,-500.0,0.00027397,3]
[343919084,1733067037982,-500.0,0.00027397,3]
[343919085,1733067037991,-500.0,0.00027397,3]
[343919086,1733067038001,-500.0,0.00027397,3]
[343919087,1733067038011,-500.0,0.00027397,3]
[343919088,1733067038020,-500.0,0.00027397,3]
[343919089,1733067038030,-500.0,0.00027397,3]
[343919090,1733067038040,-224.69966137,0.00027397,3]
[343919091,1733067038050,-500.0,0.00027397,3]
[343919092,1733067038060,-500.0,0.00027397,3]
[343919093,1733067038069,-500.0,0.00027397,3]
[343919095,1733067038079,-500.0,0.00027397,3]
[343919096,1733067038089,-500.0,0.00027397,3]
[343919097,1733067038099,-500.0,0.00027397,3]
[343919098,1733067038108,-500.0,0.00027397,3]
[343919099,1733067038118,-500.0,0.00027397,3]
[343919100,1733067038128,-500.0,0.00027397,3]
[343919101,1733067038138,-500.0,0.00027397,3]
[343919102,1733067038148,-500.0,0.00027397,3]
[343919103,1733067038157,-500.0,0.00027397,3]
[343919104,1733067038166,-509.42899791,0.00027397,3]
[343919105,1733067038175,-500.0,0.00027397,3]
[343919106,1733067038185,-500.0,0.00027397,3]
[343919107,1733067038197,-500.0,0.00027397,3]
[343919108,1733067038208,-500.0,0.00027397,3]
[343919109,1733067038217,-662.42,0.00027397,3]
[343919110,1733067038227,-500.0,0.00027397,3]
[343919111,1733067038237,-500.0,0.00027397,3]
[343919112,1733067038248,-500.0,0.00027397,3]
[343919113,1733067038258,-500.0,0.00027397,3]
[343919114,1733067038268,-500.0,0.00027397,3]
[343919115,1733067038278,-500.0,0.00027397,3]
[343919117,1733067038289,-500.0,0.00027397,3]
[343919118,1733067038299,-515.28252766,0.00027397,3]
[343919120,1733067038309,-500.0,0.00027397,3]
[343919121,1733067038319,-500.0,0.00027397,3]
[343919122,1733067038330,-500.0,0.00027397,3]
[343919123,1733067038339,-208.65918451,0.00027397,3]
[343919124,1733067038349,-500.0,0.00027397,3]
[343919126,1733067038360,-500.0,0.00027397,3]
[343919127,1733067038370,-500.0,0.00027397,3]
[343919129,1733067038380,-500.0,0.00027397,3]
[343919131,1733067038390,-500.0,0.00027397,3]
[343919133,1733067038400,-500.0,0.00027397,3]
[343919135,1733067038411,-500.0,0.00027397,3]
[343919137,1733067038421,-500.0,0.00027397,3]
[343919138,1733067038431,-500.0,0.00027397,3]
[343919141,1733067038442,-500.0,0.00027397,3]
[343919143,1733067038452,-500.0,0.00027397,3]
[343919145,1733067038462,-509.56680586,0.00027397,3]
[343919146,1733067038472,-500.0,0.00027397,3]
[343919147,1733067038482,-500.0,0.00027397,3]
[343919148,1733067038492,-506.69589701,0.00027397,3]
[343919149,1733067038502,-500.0,0.00027397,3]
[343919150,1733067038511,-574.1119942,0.00027397,3]
[343919152,1733067038520,-500.0,0.00027397,3]
[343919153,1733067038530,-500.0,0.00027397,3]
[343919154,1733067038539,-500.0,0.00027397,3]
[343919155,1733067038549,-500.0,0.00027397,3]
[343919157,1733067038558,-500.0,0.00027397,3]
[343919158,1733067038567,-500.0,0.00027397,3]
[343919159,1733067038577,-500.0,0.00027397,3]
[343919160,1733067038587,-500.0,0.00027397,3]
[343919161,1733067038596,-500.0,0.00027397,3]
[343919162,1733067038606,-554.49230796,0.00027397,3]
[343919163,1733067038616,-500.0,0.00027397,3]
[343919164,1733067038626,-500.0,0.00027397,3]
[343919165,1733067038636,-500.0,0.00027397,3]
[343919166,1733067038645,-532.16759817,0.00027397,3]
[343919167,1733067038655,-500.0,0.00027397,3]
[343919168,1733067038665,-580.46127643,0.00027397,3]
[343919169,1733067038680,-501.71132863,0.00027397,3]
[343919170,1733067038695,-506.13706304,0.00027397,3]
[343919171,1733067038707,-500.0,0.00027397,3]
[343919172,1733067038720,-500.0,0.00027397,3]
[343919173,1733067038732,-500.0,0.00027397,3]
[343919174,1733067038742,-584.43714663,0.00027397,3]
[343919176,1733067038752,-506.78851728,0.00027397,3]
[343919178,1733067038762,-500.0,0.00027397,3]
[343919180,1733067038772,-162.25800869,0.00027397,3]
[343919181,1733067038781,-500.0,0.00027397,3]
[343919182,1733067038790,-500.0,0.00027397,3]
[343919183,1733067038800,-500.0,0.00027397,3]
[343919184,1733067038810,-500.0,0.00027397,3]
[343919185,1733067038820,-500.0,0.00027397,3]
[343919186,1733067038833,-500.0,0.00027397,3]
[343919187,1733067038844,-500.0,0.00027397,3]
[343919188,1733067038853,-500.0,0.00027397,3]
[343919189,1733067038863,-500.0,0.00027397,3]
[343919190,1733067038879,-500.0,0.00027397,3]
[343919191,1733067038889,-500.0,0.00027397,3]
[343919192,1733067038899,-500.0,0.00027397,3]
[343919193,1733067038909,-500.0,0.00027397,3]
[343919194,1733067038922,-500.0,0.00027397,3]
[343919195,1733067038942,-500.0,0.00027397,3]
[343919196,1733067038952,-200.0,0.00027397,3]
[343919197,1733067038962,-500.0,0.00027397,3]
[343919198,1733067038972,-500.0,0.00027397,3]
[343919199,1733067038981,-500.0,0.00027397,3]
[343919200,1733067038991,-500.0,0.00027397,3]
[343919201,1733067039000,-500.0,0.00027397,3]
[343919202,1733067039010,-500.0,0.00027397,3]
[343919203,1733067039019,-500.0,0.00027397,3]
[343919204,1733067039028,-500.0,0.00027397,3]
[343919205,1733067039038,-500.0,0.00027397,3]
[343919206,1733067039047,-500.0,0.00027397,3]
[343919207,1733067039057,-500.0,0.00027397,3]
[343919208,1733067039066,-500.0,0.00027397,3]
[343919209,1733067039076,-500.0,0.00027397,3]
[343919210,1733067039086,-500.0,0.00027397,3]
[343919211,1733067039095,-640.18671839,0.00027397,3]
[343919212,1733067039105,-500.0,0.00027397,3]
[343919213,1733067039114,-500.0,0.00027397,3]
[343919214,1733067039124,-500.0,0.00027397,3]
[343919215,1733067039134,-500.0,0.00027397,2]
[343919216,1733067039144,-500.0,0.00027397,3]
[343919217,1733067039153,-500.0,0.00027397,3]
[343919218,1733067039163,-500.0,0.00027397,3]
[343919219,1733067039173,-151.0,0.00027397,7]
[343919220,1733067039183,-151.0,0.00027397,7]
[343919221,1733067039192,-500.0,0.00027397,3]
[343919222,1733067039202,-500.0,0.00027397,3]
[343919223,1733067039211,-500.0,0.00027397,3]
[343919224,1733067039221,-500.0,0.00027397,3]
[343919225,1733067039231,-500.0,0.00027397,3]
[343919226,1733067039241,-240.32287367,0.00027397,3]
[343919227,1733067039251,-500.0,0.00027397,3]
[343919228,1733067039260,-500.0,0.00027397,3]
[343919229,1733067039270,-309.5398032,0.00027397,3]
[343919230,1733067039280,-500.0,0.00027397,3]
[343919231,1733067039289,-500.0,0.00027397,3]
[343919232,1733067039299,-500.0,0.00027397,3]
[343919233,1733067039308,-370.96142076,0.00027397,3]
[343919234,1733067039318,-500.0,0.00027397,3]
[343919235,1733067039327,-500.0,0.00027397,3]
[343919236,1733067039336,-500.0,0.00027397,3]
[343919237,1733067039345,-500.0,0.00027397,3]
[343919238,1733067039355,-500.0,0.00027397,3]
[343919239,1733067039364,-500.0,0.00027397,3]
[343919240,1733067039373,-500.0,0.00027397,3]
[343919241,1733067039462,-244.36779107,0.00027397,3]
[343919242,1733067039471,-500.0,0.00027397,3]
[343919243,1733067039480,-500.0,0.00027397,3]
[343919244,1733067039489,-500.0,0.00027397,3]
[343919245,1733067039498,-500.0,0.00027397,3]
[343919246,1733067039507,-500.0,0.00027397,3]
[343919247,1733067039516,-500.0,0.00027397,3]
[343919248,1733067039526,-524.54900008,0.00027397,3]
[343919249,1733067039535,-500.0,0.00027397,3]
[343919250,1733067039545,-500.0,0.00027397,3]
[343919251,1733067039555,-500.0,0.00027397,3]
[343919252,1733067039565,-500.0,0.00027397,3]
[343919253,1733067039574,-663.05,0.00027397,3]
[343919254,1733067039584,-500.0,0.00027397,3]
[343919255,1733067039593,-500.0,0.00027397,3]
[343919256,1733067039603,-500.0,0.00027397,3]
[343919257,1733067039612,-500.0,0.00027397,3]
[343919258,1733067039621,-500.0,0.00027397,3]
[343919259,1733067039630,-500.0,0.00027397,3]
[343919260,1733067039640,-575.85533055,0.00027397,3]
[343919261,1733067039649,-500.0,0.00027397,3]
[343919262,1733067039658,-500.0,0.00027397,3]
[343919263,1733067039668,-500.0,0.00027397,3]
[343919264,1733067039677,-500.0,0.00027397,3]
[343919265,1733067039687,-500.0,0.00027397,3]
[343919266,1733067039699,-511.08603335,0.00027397,3]
[343919267,1733067039709,-500.0,0.00027397,3]
[343919268,1733067039718,-500.0,0.00027397,3]
[343919269,1733067039728,-599.17,0.00027397,3]
[343919270,1733067039738,-540.21113922,0.00027397,3]
[343919271,1733067039747,-500.0,0.00027397,3]
[343919272,1733067039756,-500.0,0.00027397,3]
[343919273,1733067039766,-500.0,0.00027397,3]
[343919274,1733067039775,-500.0,0.00027397,3]
[343919275,1733067039784,-565.51,0.00027397,3]
[343919276,1733067039794,-516.32,0.00027397,3]
[343919277,1733067039804,-500.0,0.00027397,3]
[343919278,1733067039814,-508.4456035,0.00027397,3]
[343919279,1733067039823,-583.97681712,0.00027397,3]
[343919280,1733067039833,-500.0,0.00027397,3]
[343919281,1733067039843,-514.98818935,0.00027397,3]
[343919282,1733067039852,-170.168595,0.00027397,3]
[343919283,1733067039862,-500.0,0.00027397,3]
[343919284,1733067039872,-500.0,0.00027397,3]
[343919285,1733067039884,-500.0,0.00027397,3]
[343919286,1733067039894,-500.0,0.00027397,3]
[343919287,1733067039903,-500.0,0.00027397,3]
[343919288,1733067039912,-500.0,0.00027397,3]
[343919289,1733067039923,-500.0,0.00027397,3]
[343919290,1733067039933,-500.0,0.00027397,3]
[343919291,1733067039943,-500.0,0.00027397,3]
[343919292,1733067039954,-500.0,0.00027397,3]
[343919293,1733067039964,-500.0,0.00027397,3]
[343919294,1733067039974,-500.0,0.00027397,3]
[343919295,1733067039983,-161.67927882,0.00027397,3]
[343919296,1733067039993,-500.0,0.00027397,3]
[343919297,1733067040003,-500.0,0.00027397,3]
[343919298,1733067040013,-500.0,0.00027397,3]
[343919299,1733067040022,-500.0,0.00027397,3]
[343919300,1733067040031,-501.08140871,0.00027397,3]
[343919301,1733067040040,-500.0,0.00027397,3]
[343919302,1733067040050,-500.0,0.00027397,3]
[343919303,1733067040060,-388.13153747,0.00027397,3]
[343919304,1733067040070,-500.0,0.00027397,3]
[343919305,1733067040080,-527.50007082,0.00027397,3]
[343919306,1733067040089,-868.9292748,0.00027397,5]
[343919307,1733067040099,-505.4984902,0.00027397,3]
[343919308,1733067040109,-500.0,0.00027397,3]
[343919309,1733067040119,-500.0,0.00027397,3]